fUSD/lending_fUSD_20250923
["ID","MTS","AMOUNT","RATE_DAILY","PERIOD"]
[387132528,1758588681169,-969.65,0.0002082,2]
[387132529,1758588681178,-433.42,0.0002082,2]
[387132530,1758588681188,-577.66,0.0002082,2]
[387132531,1758588681197,-400.0,0.0002082,2]
[387132532,1758588681206,-400.0,0.0002082,2]
[387132533,1758588681215,-400.0,0.0002082,2]
[387132534,1758588681224,-803.42,0.0002082,2]
[387132535,1758588681233,-400.0,0.0002082,2]
[387132536,1758588681242,-400.0,0.0002082,2]
[387132537,1758588681252,-651.06,0.0002082,2]
[387132538,1758588681261,-400.0,0.0002082,2]
[387132539,1758588681270,-400.0,0.0002082,2]
[387132540,1758588681279,-414.87,0.0002082,2]
[387132541,1758588681288,-400.0,0.0002082,2]
[387132542,1758588681298,-602.08,0.0002082,2]
[387132543,1758588681307,-400.0,0.0002082,2]
[387132544,1758588681315,-400.0,0.0002082,2]
[387132545,1758588681325,-400.0,0.0002082,2]
[387132546,1758588681334,-697.68,0.0002082,2]
[387132547,1758588681343,-400.0,0.0002082,2]
[387132548,1758588681351,-1169.47,0.0002082,2]
[387132549,1758588681360,-184.64360385,0.0002082,2]
[387132550,1758588681369,-400.0,0.0002082,2]
[387132551,1758588681378,-400.0,0.0002082,2]
[387132552,1758588681387,-440.26,0.0002082,2]
[387132553,1758588681395,-514.36,0.0002082,2]
[387132554,1758588681404,-593.88,0.0002082,2]
[387132555,1758588681413,-400.0,0.0002082,2]
[387132556,1758588681422,-1060.97,0.0002082,2]
[387132557,1758588681431,-743.55,0.0002082,2]
[387132558,1758588681440,-400.0,0.0002082,2]
[387132559,1758588681449,-620.51,0.0002082,2]
[387132560,1758588681458,-400.0,0.0002082,2]
[387132561,1758588681468,-400.0,0.0002082,2]
[387132562,1758588681478,-400.0,0.0002082,2]
[387132563,1758588681487,-695.32,0.0002082,2]
[387132564,1758588681496,-447.81,0.0002082,2]
[387132565,1758588681506,-400.0,0.0002082,2]
[387132566,1758588681515,-533.26,0.0002082,2]
[387132567,1758588681524,-909.99,0.0002082,2]
[387132568,1758588681534,-400.0,0.0002082,2]
[387132569,1758588681543,-400.0,0.0002082,2]
[387132570,1758588681552,-400.0,0.0002082,2]
[387132571,1758588681562,-609.54,0.0002082,2]
[387132572,1758588681572,-400.0,0.0002082,2]
[387132573,1758588681582,-503.16,0.0002082,2]
[387132574,1758588681591,-652.42,0.0002082,2]
[387132575,1758588681601,-310.98163398,0.0002082,2]
[387132576,1758588681610,-1926.15,0.0002082,2]
[387132577,1758588681619,-400.0,0.0002082,2]
[387132578,1758588681628,-808.98,0.0002082,2]
[387132579,1758588681638,-997.93,0.0002082,2]
[387132580,1758588681647,-2763.9,0.0002082,2]
[387132581,1758588681657,-822.69,0.0002082,2]
[387132582,1758588681666,-412.07,0.0002082,2]
[387132583,1758588681675,-400.0,0.0002082,2]
[387132584,1758588681684,-1231.62,0.0002082,2]
[387132585,1758588681693,-435.88,0.0002082,2]
[387132586,1758588681702,-400.0,0.0002082,2]
[387132587,1758588681711,-1881.3,0.0002082,2]
[387132588,1758588681720,-400.0,0.0002082,2]
[387132589,1758588681729,-400.0,0.0002082,2]
[387132590,1758588681739,-1082.02,0.0002082,2]
[387132591,1758588681748,-703.54,0.0002082,2]
[387132592,1758588681758,-471.61,0.0002082,2]
[387132593,1758588681766,-698.95,0.0002082,2]
[387132594,1758588681776,-422.43,0.0002082,2]
[387132595,1758588681785,-665.52,0.0002082,2]
[387132596,1758588681795,-1517.07,0.0002082,2]
[387132597,1758588681805,-1290.57,0.0002082,2]
[387132598,1758588681814,-599.8,0.0002082,2]
[387132599,1758588681824,-864.51,0.0002082,2]
[387132600,1758588681834,-400.0,0.0002082,2]
[387132601,1758588681843,-700.22,0.0002082,2]
[387132602,1758588681853,-578.19,0.0002082,2]
[387132603,1758588681862,-400.0,0.0002082,2]
[387132604,1758588681871,-400.0,0.0002082,2]
[387132605,1758588681880,-400.0,0.0002082,2]
[387132606,1758588681890,-1270.12,0.0002082,2]
[387132607,1758588681899,-529.42,0.0002082,2]
[387132608,1758588681909,-1179.29,0.0002082,2]
[387132609,1758588681918,-790.42,0.0002082,2]
[387132610,1758588681928,-546.07,0.0002082,2]
[387132611,1758588681937,-796.17,0.0002082,2]
[387132612,1758588681946,-400.0,0.0002082,2]
[387132613,1758588681956,-1797.38,0.0002082,2]
[387132614,1758588681965,-400.0,0.0002082,2]
[387132615,1758588681975,-1067.68,0.0002082,2]
[387132616,1758588681984,-400.0,0.0002082,2]
[387132617,1758588681993,-400.0,0.0002082,2]
[387132618,1758588682002,-400.0,0.0002082,2]
[387132619,1758588682011,-685.94,0.0002082,2]
[387132620,1758588682021,-400.0,0.0002082,2]
[387132621,1758588682030,-400.0,0.0002082,2]
[387132622,1758588682040,-400.0,0.0002082,2]
[387132623,1758588682049,-4410.79,0.0002082,2]
[387132624,1758588682058,-400.0,0.0002082,2]
[387132625,1758588682183,-400.0,0.0002082,2]
[387132626,1758588682192,-635.32,0.0002082,2]
[387132627,1758588682201,-825.39,0.0002082,2]
[387132628,1758588682211,-400.0,0.0002082,2]
[387132629,1758588682219,-367.49,0.0002082,2]
[387132630,1758588682228,-1159.17,0.0002082,2]
[387132631,1758588682237,-3621.17,0.0002082,2]
[387132632,1758588682247,-536.01,0.0002082,2]
[387132633,1758588682256,-1555.92,0.0002082,2]
[387132634,1758588682265,-685.82,0.0002082,2]
[387132635,1758588682275,-400.0,0.0002082,2]
[387132636,1758588682284,-400.0,0.0002082,2]
[387132637,1758588682293,-1688.59,0.0002082,2]
[387132638,1758588682302,-533.54,0.0002082,2]
[387132639,1758588682312,-3199.7,0.0002082,2]
[387132640,1758588682322,-400.0,0.0002082,2]
[387132641,1758588682332,-5083.46,0.0002082,2]
[387132642,1758588682342,-532.7,0.0002082,2]
[387132643,1758588682351,-726.03,0.0002082,2]
[387132644,1758588682360,-1692.11,0.0002082,2]
[387132645,1758588682370,-633.11,0.0002082,2]
[387132646,1758588682379,-411.61,0.0002082,2]
[387132647,1758588682390,-400.0,0.0002082,2]
[387132648,1758588682400,-648.3,0.0002082,2]
[387132649,1758588682409,-400.0,0.0002082,2]
[387132650,1758588682419,-857.03,0.0002082,2]
[387132651,1758588682429,-722.01,0.0002082,2]
[387132652,1758588682439,-1108.24,0.0002082,2]
[387132653,1758588682448,-464.86,0.0002082,2]
[387132654,1758588682458,-2367.09,0.0002082,2]
[387132655,1758588682467,-400.0,0.0002082,2]
[387132656,1758588682477,-400.0,0.0002082,2]
[387132657,1758588682487,-400.0,0.0002082,2]
[387132658,1758588682496,-1636.84,0.0002082,2]
[387132659,1758588682505,-2136.91,0.0002082,2]
[387132660,1758588682514,-555.5,0.0002082,2]
[387132661,1758588682524,-914.0,0.0002082,2]
[387132662,1758588682533,-887.03,0.0002082,2]
[387132663,1758588682542,-408.41905686,0.0002082,2]
[387132664,1758588682552,-1767.45,0.0002082,2]
[387132665,1758588682561,-1514.68,0.0002082,2]
[387132666,1758588682570,-553.9,0.0002082,2]
[387132667,1758588682579,-644.46,0.0002082,2]
[387132668,1758588682588,-2259.45,0.0002082,2]
[387132669,1758588682598,-400.0,0.0002082,2]
[387132670,1758588682608,-434.59,0.0002082,2]
[387132671,1758588682618,-1093.45,0.0002082,2]
[387132672,1758588682628,-1283.49,0.0002082,2]
[387132673,1758588682637,-1392.04,0.0002082,2]
[387132674,1758588682648,-579.07,0.0002082,2]
[387132675,1758588682658,-400.0,0.0002082,2]
[387132676,1758588682667,-400.0,0.0002082,2]
[387132677,1758588682676,-400.0,0.0002082,2]
[387132678,1758588682686,-586.63,0.0002082,2]
[387132679,1758588682695,-852.34,0.0002082,2]
[387132680,1758588682705,-400.0,0.0002082,2]
[387132681,1758588682714,-602.29,0.0002082,2]
[387132682,1758588682724,-691.38,0.0002082,2]
[387132683,1758588682733,-2120.46,0.0002082,2]
[387132684,1758588682742,-400.0,0.0002082,2]
[387132685,1758588682752,-730.17,0.0002082,2]
[387132686,1758588682761,-713.11,0.0002082,2]
[387132687,1758588682771,-400.0,0.0002082,2]
[387132688,1758588682780,-824.24,0.0002082,2]
[387132689,1758588682789,-2178.93,0.0002082,2]
[387132690,1758588682799,-563.68,0.0002082,2]
[387132691,1758588682808,-400.0,0.0002082,2]
[387132692,1758588682817,-624.27,0.0002082,2]
[387132693,1758588682827,-1279.8,0.0002082,2]
[387132694,1758588682837,-400.0,0.0002082,2]
[387132695,1758588682846,-400.0,0.0002082,2]
[387132696,1758588682855,-400.0,0.0002082,2]
[387132697,1758588682865,-400.0,0.0002082,2]
[387132698,1758588682875,-1000.0,0.00020821,2]
[387132699,1758588682884,-512.75685758,0.00020821,2]
[387132700,1758588682893,-1000.0,0.00020821,2]
[387132701,1758588682903,-1000.0,0.00020821,2]
[387132702,1758588682912,-1000.9881595,0.00020821,2]
[387132703,1758588682921,-500.0,0.00020821,2]
[387132704,1758588682930,-400.0,0.00020821,2]
[387132705,1758588682939,-400.0,0.00020821,2]
[387132706,1758588682948,-197.7,0.00020821,2]
[387132707,1758588682957,-400.0,0.00020821,2]
[387132708,1758588682967,-400.0,0.00020821,2]
[387132709,1758588682976,-400.0,0.00020821,2]
[387132710,1758588682986,-233.48,0.00020821,2]
[387132711,1758588682995,-400.0,0.00020821,2]
[387132712,1758588683005,-420.33,0.00020821,2]
[387132713,1758588683015,-474.06969517,0.00020821,2]
[387132714,1758588683025,-400.0,0.00020821,2]
[387132715,1758588683034,-400.0,0.00020821,2]
[387132716,1758588683044,-400.0,0.00020821,2]
[387132717,1758588683053,-400.0,0.00020821,2]
[387132718,1758588683062,-400.0,0.00020821,2]
[387132719,1758588683072,-400.0,0.00020821,2]
[387132720,1758588683082,-400.0,0.00020821,2]
[387132721,1758588683095,-400.0,0.00020821,2]
[387132722,1758588683104,-400.0,0.00020821,2]
[387132723,1758588683114,-400.0,0.00020821,2]
[387132724,1758588683126,-400.0,0.00020821,2]
[387132725,1758588683137,-400.0,0.00020821,2]
[387132726,1758588683147,-400.0,0.00020821,2]
[387132727,1758588683156,-416.99,0.00020821,2]
[387132728,1758588683166,-400.0,0.00020821,2]
[387132729,1758588683175,-400.0,0.00020821,2]
[387132730,1758588683184,-400.0,0.00020821,2]
[387132731,1758588683193,-400.0,0.00020821,2]
[387132732,1758588683202,-476.98,0.00020821,2]
[387132733,1758588683211,-400.0,0.00020821,2]
[387132734,1758588683221,-400.0,0.00020821,2]
[387132735,1758588683230,-400.0,0.00020821,2]
[387132736,1758588683239,-400.0,0.00020821,2]
[387132737,1758588683248,-400.0,0.00020821,2]
[387132738,1758588683257,-555.17,0.00020821,2]
[387132739,1758588683266,-400.0,0.00020821,2]
[387132740,1758588683275,-400.0,0.00020821,2]
[387132741,1758588683284,-400.0,0.00020821,2]
[387132742,1758588683294,-400.0,0.00020821,2]
[387132743,1758588683303,-400.0,0.00020821,2]
[387132744,1758588683313,-400.0,0.00020821,2]
[387132745,1758588683322,-400.0,0.00020821,2]
[387132746,1758588683332,-491.16,0.00020821,2]
[387132747,1758588683341,-400.0,0.00020821,2]
[387132748,1758588683351,-400.0,0.00020821,2]
[387132749,1758588683361,-400.0,0.00020821,2]
[387132750,1758588683371,-400.0,0.00020821,2]
[387132751,1758588683383,-400.0,0.00020821,2]
[387132752,1758588683393,-400.0,0.00020821,2]
[387132753,1758588683403,-219.6,0.00020821,2]
[387132754,1758588683415,-400.0,0.00020821,2]
[387132755,1758588683431,-400.0,0.00020821,2]
[387132756,1758588683442,-400.0,0.00020821,2]
[387132757,1758588683452,-400.0,0.00020821,2]
[387132758,1758588683463,-416.06,0.00020821,2]
[387132759,1758588683472,-439.92,0.00020821,2]
[387132760,1758588683483,-400.0,0.00020821,2]
[387132761,1758588683493,-400.0,0.00020821,2]
[387132762,1758588683504,-400.0,0.00020821,2]
[387132763,1758588683514,-400.0,0.00020821,2]
[387132764,1758588683525,-400.0,0.00020821,2]
[387132765,1758588683534,-400.0,0.00020821,2]
[387132766,1758588683545,-400.0,0.00020821,2]
[387132767,1758588683559,-400.0,0.00020821,2]
[387132768,1758588683569,-183.3,0.00020821,2]
[387132769,1758588683578,-400.0,0.00020821,2]
[387132770,1758588683588,-400.0,0.00020821,2]
[387132771,1758588683597,-400.0,0.00020821,2]
[387132772,1758588683606,-400.0,0.00020821,2]
[387132773,1758588683615,-400.0,0.00020821,2]
[387132774,1758588683625,-400.0,0.00020821,2]
[387132775,1758588683635,-428.44,0.00020821,2]
[387132776,1758588683644,-400.0,0.00020821,2]
[387132777,1758588683653,-400.0,0.00020821,2]
[387132778,1758588683663,-400.0,0.00020821,2]
[387132779,1758588683672,-400.0,0.00020821,2]
[387132780,1758588683681,-400.0,0.00020821,2]
[387132781,1758588683691,-400.0,0.00020821,2]
[387132782,1758588683700,-400.0,0.00020821,2]
[387132783,1758588683710,-400.0,0.00020821,2]
[387132784,1758588683719,-400.0,0.00020821,2]
[387132785,1758588683729,-167.4,0.00020821,2]
[387132786,1758588683738,-302.68710795,0.00020821,2]
[387132787,1758588683748,-400.0,0.00020821,2]
[387132788,1758588683757,-400.0,0.00020821,2]
[387132789,1758588683767,-400.0,0.00020821,2]
[387132790,1758588683777,-400.0,0.00020821,2]
[387132791,1758588683788,-311.53323377,0.00020821,2]
[387132792,1758588683797,-400.0,0.00020821,2]
[387132793,1758588683807,-400.0,0.00020821,2]
[387132794,1758588683816,-400.0,0.00020821,2]
[387132795,1758588683825,-400.0,0.00020821,2]
[387132796,1758588683835,-541.66,0.00020821,2]
[387132797,1758588683844,-400.0,0.00020821,2]
[387132798,1758588683853,-400.0,0.00020821,2]
[387132799,1758588683863,-400.0,0.00020821,2]
[387132800,1758588683872,-440.1,0.00020821,2]
[387132801,1758588683881,-400.0,0.00020821,2]
[387132802,1758588683890,-400.0,0.00020821,2]
[387132803,1758588683900,-400.0,0.00020821,2]
[387132804,1758588683909,-754.63,0.00020821,2]
[387132805,1758588683919,-403.38,0.00020821,2]
[387132806,1758588683928,-917.82,0.00020821,2]
[387132807,1758588683937,-400.0,0.00020821,2]
[387132808,1758588683947,-400.0,0.00020821,2]
[387132809,1758588683956,-504.07,0.00020821,2]
[387132810,1758588683965,-400.0,0.00020821,2]
[387132811,1758588683974,-535.33,0.00020821,2]
[387132812,1758588683983,-414.45,0.00020821,2]
[387132813,1758588683992,-597.93,0.00020821,2]
[387132814,1758588684001,-400.0,0.00020821,2]
[387132815,1758588684011,-400.0,0.00020821,2]
[387132816,1758588684022,-599.79,0.00020821,2]
[387132817,1758588684032,-418.43,0.00020821,2]
[387132818,1758588684043,-480.79,0.00020821,2]
[387132819,1758588684052,-400.0,0.00020821,2]
[387132820,1758588684061,-512.84,0.00020821,2]
[387132821,1758588684070,-400.0,0.00020821,2]
[387132822,1758588684080,-830.32,0.00020821,2]
[387132823,1758588684094,-400.0,0.00020821,2]
[387132824,1758588684103,-400.0,0.00020821,2]
[387132825,1758588684112,-400.0,0.00020821,2]
[387132826,1758588684122,-400.0,0.00020821,2]
[387132827,1758588684133,-877.74,0.00020821,2]
[387132828,1758588684143,-454.04,0.00020821,2]
[387132829,1758588684152,-944.31,0.00020821,2]
[387132830,1758588684163,-400.0,0.00020821,2]
[387132831,1758588684173,-400.0,0.00020821,2]
[387132832,1758588684182,-151.0,0.00020821,2]
[387132833,1758588684191,-400.0,0.00020821,2]
[387132834,1758588684200,-866.7,0.00020821,2]
[387132835,1758588684209,-400.0,0.00020821,2]
[387132836,1758588684218,-983.28,0.00020821,2]
[387132837,1758588684227,-400.0,0.00020821,2]
[387132838,1758588684237,-722.94,0.00020821,2]
[387132839,1758588684247,-400.0,0.00020821,2]
[387132840,1758588684256,-533.52,0.00020821,2]
[387132841,1758588684265,-447.2,0.00020821,2]
[387132842,1758588684275,-151.0,0.00020821,2]
[387132843,1758588684284,-478.80297934,0.00020821,2]
[387132844,1758588684293,-400.0,0.00020821,2]
[387132845,1758588684304,-542.91,0.00020821,2]
[387132846,1758588684313,-400.0,0.00020821,2]
[387132847,1758588684323,-531.68,0.00020821,2]
[387132848,1758588684613,-559.02,0.00020821,2]
[387132849,1758588684623,-400.0,0.00020821,2]
[387132850,1758588684632,-400.0,0.00020821,2]
[387132851,1758588684642,-682.63,0.00020821,2]
[387132852,1758588684651,-151.0,0.00020821,2]
[387132853,1758588684660,-151.0,0.00020821,2]
[387132854,1758588684670,-400.0,0.00020821,2]
[387132855,1758588684679,-151.0,0.00020821,2]
[387132856,1758588684688,-185.43342,0.00020821,2]
[387132857,1758588684697,-400.0,0.00020821,2]
[387132858,1758588684707,-461.64,0.00020821,2]
[387132859,1758588684716,-200.85,0.00020821,2]
[387132860,1758588684725,-228.27,0.00020821,2]
[387132861,1758588684735,-400.0,0.00020821,2]
[387132862,1758588684744,-400.0,0.00020821,2]
[387132863,1758588684753,-300.0,0.00020821,2]
[387132864,1758588684762,-671.51,0.00020821,2]
[387132865,1758588684772,-400.0,0.00020821,2]
[387132866,1758588684781,-404.72,0.00020821,2]
[387132867,1758588684791,-400.0,0.00020821,2]
[387132868,1758588684801,-151.0,0.00020821,2]
[387132869,1758588684810,-151.0,0.00020821,2]
[387132870,1758588684820,-400.0,0.00020821,2]
[387132871,1758588684829,-607.71,0.00020821,2]
[387132872,1758588684839,-151.0,0.00020821,2]
[387132873,1758588684849,-300.0,0.00020821,2]
[387132874,1758588684859,-223.28,0.00020821,2]
[387132875,1758588684869,-400.0,0.00020821,2]
[387132876,1758588684880,-400.0,0.00020821,2]
[387132877,1758588684890,-400.0,0.00020821,2]
[387132879,1758588684899,-358.20309337,0.00020821,2]
[387132880,1758588684908,-400.0,0.00020821,2]
[387132881,1758588684919,-421.51,0.00020821,2]
[387132882,1758588684928,-400.0,0.00020821,2]
[387132883,1758588684938,-289.9,0.00020821,2]
[387132884,1758588684947,-400.0,0.00020821,2]
[387132885,1758588684956,-965.94,0.00020821,2]
[387132886,1758588684966,-596.18,0.00020821,2]
[387132887,1758588684975,-400.0,0.00020821,2]
[387132888,1758588684984,-400.0,0.00020821,2]
[387132889,1758588684994,-417.6,0.00020821,2]
[387132890,1758588685003,-779.83,0.00020821,2]
[387132891,1758588685012,-400.0,0.00020821,2]
[387132892,1758588685022,-400.0,0.00020821,2]
[387132893,1758588685031,-400.0,0.00020821,2]
[387132894,1758588685041,-400.0,0.00020821,2]
[387132895,1758588685050,-400.0,0.00020821,2]
[387132896,1758588685059,-400.0,0.00020821,2]
[387132897,1758588685069,-720.23,0.00020821,2]
[387132898,1758588685079,-400.0,0.00020821,2]
[387132899,1758588685091,-400.0,0.00020821,2]
[387132900,1758588685100,-400.0,0.00020821,2]
[387132901,1758588685109,-432.08,0.00020821,2]
[387132902,1758588685119,-400.0,0.00020821,2]
[387132903,1758588685128,-400.0,0.00020821,2]
[387132904,1758588685139,-926.5,0.00020821,2]
[387132905,1758588685149,-400.0,0.00020821,2]
[387132906,1758588685158,-400.0,0.00020821,2]
[387132907,1758588685168,-151.246143,0.00020821,2]
[387132908,1758588685177,-400.0,0.00020821,2]
[387132909,1758588685186,-453.42,0.00020821,2]
[387132910,1758588685195,-400.0,0.00020821,2]
[387132911,1758588685205,-499.27,0.00020821,2]
[387132912,1758588685214,-415.36,0.00020821,2]
[387132913,1758588685223,-400.0,0.00020821,2]
[387132914,1758588685234,-400.0,0.00020821,2]
[387132915,1758588685244,-1064.17,0.00020821,2]
[387132916,1758588685255,-400.0,0.00020821,2]
[387132917,1758588685265,-400.0,0.00020821,2]
[387132918,1758588685274,-400.0,0.00020821,2]
[387132919,1758588685283,-400.0,0.00020821,2]
[387132920,1758588685293,-400.0,0.00020821,2]
[387132921,1758588685302,-400.0,0.00020821,2]
[387132922,1758588685311,-428.67,0.00020821,2]
[387132923,1758588685320,-400.0,0.00020821,2]
[387132924,1758588685330,-427.84,0.00020821,2]
[387132925,1758588685339,-400.0,0.00020821,2]
[387132926,1758588685348,-400.0,0.00020821,2]
[387132927,1758588685358,-400.0,0.00020821,2]
[387132928,1758588685368,-400.0,0.00020821,2]
[387132929,1758588685377,-715.39,0.00020821,2]
[387132930,1758588685386,-207.39,0.00020821,2]
[387132931,1758588685396,-515.86,0.00020821,2]
[387132932,1758588685405,-400.0,0.00020821,2]
[387132933,1758588685414,-151.0,0.00020821,2]
[387132934,1758588685424,-400.0,0.00020821,2]
[387132935,1758588685433,-400.0,0.00020821,2]
[387132936,1758588685442,-400.0,0.00020821,2]
[387132937,1758588685451,-1049.53,0.00020821,2]
[387132938,1758588685461,-400.0,0.00020821,2]
[387132939,1758588685470,-400.0,0.00020821,2]
[387132940,1758588685491,-400.0,0.00020821,2]
[387132941,1758588685502,-400.0,0.00020821,2]
[387132942,1758588685514,-669.85,0.00020821,2]
[387132943,1758588685524,-524.43,0.00020821,2]
[387132944,1758588685535,-231.849607,0.00020821,2]
[387132945,1758588685548,-400.0,0.00020821,2]
[387132946,1758588685567,-480.73,0.00020821,2]
[387132947,1758588685577,-418.66,0.00020821,2]
[387132948,1758588685587,-400.0,0.00020821,2]
[387132949,1758588685597,-400.0,0.00020821,2]
[387132951,1758588685607,-400.0,0.00020821,2]
[387132952,1758588685616,-400.0,0.00020821,2]
[387132953,1758588685626,-400.0,0.00020821,2]
[387132954,1758588685636,-400.0,0.00020821,2]
[387132955,1758588685647,-400.0,0.00020821,2]
[387132956,1758588685657,-645.11,0.00020821,2]
[387132957,1758588685669,-400.0,0.00020821,2]
[387132958,1758588685679,-521.7,0.00020821,2]
[387132959,1758588685690,-466.00587737,0.00020821,2]
[387132960,1758588685700,-3259.34,0.00020821,2]
[387132961,1758588685712,-400.0,0.00020821,2]
[387132962,1758588685723,-400.0,0.00020821,2]
[387132963,1758588685733,-819.08,0.00020821,2]
[387132964,1758588685743,-400.0,0.00020821,2]
[387132965,1758588685753,-527.41,0.00020821,2]
[387132966,1758588685762,-400.0,0.00020821,2]
[387132967,1758588685772,-711.41,0.00020821,2]
[387132968,1758588685782,-400.0,0.00020821,2]
[387132969,1758588685791,-400.0,0.00020821,2]
[387132970,1758588685801,-400.0,0.00020821,2]
[387132971,1758588685812,-400.0,0.00020821,2]
[387132972,1758588685822,-400.0,0.00020821,2]
[387132973,1758588685831,-707.11,0.00020821,2]
[387132974,1758588685840,-400.0,0.00020821,2]
[387132975,1758588685850,-4823.52,0.00020821,2]
[387132976,1758588685859,-400.0,0.00020821,2]
[387132977,1758588685869,-400.0,0.00020821,2]
[387132978,1758588685878,-1811.93,0.00020821,2]
[387132979,1758588685888,-400.0,0.00020821,2]
[387132980,1758588685898,-658.31,0.00020821,2]
[387132981,1758588685908,-1161.68,0.00020821,2]
[387132982,1758588685918,-400.0,0.00020821,2]
[387132983,1758588685927,-400.0,0.00020821,2]
[387132984,1758588685937,-751.69,0.00020821,2]
[387132985,1758588685946,-400.0,0.00020821,2]
[387132986,1758588685955,-532.84,0.00020821,2]
[387132987,1758588685965,-760.3,0.00020821,2]
[387132988,1758588685975,-400.0,0.00020821,2]
[387132989,1758588685985,-400.0,0.00020821,2]
[387132990,1758588685995,-427.52,0.00020821,2]
[387132991,1758588686005,-400.0,0.00020821,2]
[387132992,1758588686014,-450.15,0.00020821,2]
[387132993,1758588686024,-500.42,0.00020821,2]
[387132994,1758588686034,-1000.0,0.00020821,2]
[387132995,1758588686043,-535.91,0.00020821,2]
[387132996,1758588686053,-440.64,0.00020821,2]
[387132997,1758588686063,-839.22,0.00020821,2]
[387132998,1758588686073,-400.0,0.00020821,2]
[387132999,1758588686083,-1017.53,0.00020821,2]
[387133000,1758588686095,-400.0,0.00020821,2]
[387133001,1758588686104,-400.0,0.00020821,2]
[387133002,1758588686114,-9183.84,0.00020821,2]
[387133003,1758588686124,-400.0,0.00020821,2]
[387133004,1758588686134,-400.0,0.00020821,2]
[387133005,1758588686144,-451.23,0.00020821,2]
[387133006,1758588686153,-400.0,0.00020821,2]
[387133007,1758588686163,-894.16,0.00020821,2]
[387133008,1758588686173,-683.2,0.00020821,2]
[387133009,1758588686182,-1123.88,0.00020821,2]
[387133010,1758588686193,-406.45,0.00020821,2]
[387133011,1758588686202,-1005.19,0.00020821,2]
[387133012,1758588686211,-808.52,0.00020821,2]
[387133013,1758588686221,-1110.73,0.00020821,2]
[387133014,1758588686230,-400.0,0.00020821,2]
[387133015,1758588686240,-1205.76,0.00020821,2]
[387133016,1758588686250,-400.0,0.00020821,2]
[387133017,1758588686259,-400.0,0.00020821,2]
[387133018,1758588686269,-741.22,0.00020821,2]
[387133019,1758588686278,-400.0,0.00020821,2]
[387133020,1758588686287,-500.0,0.00020829,2]
[387133021,1758588686297,-500.0,0.00020829,2]
[387133022,1758588686307,-691.38,0.00020829,2]
[387133023,1758588686316,-605.8384779,0.00020873,2]
[387133024,1758588686325,-170.26157339,0.00020873,2]
[387133025,1758588686335,-501.5957485,0.00020873,2]
[387133026,1758588686344,-500.0,0.00020873,2]
[387133027,1758588686354,-500.0,0.00020873,2]
[387133028,1758588686363,-500.0,0.00020873,2]
[387133029,1758588686373,-500.84461254,0.00020873,2]